[Event "Early-Titled-Tuesday-Blitz-February-06-2024"]
[Site "Chess.com"]
[Date "2024.02.06"]
[Round "4"]
[White "Semetey"]
[Black "yosephtaher"]
[Result "0-1"]
[WhiteElo "2641"]
[BlackElo "2894"]
[TimeControl "180+1"]
[EndTime "8:38:35 PST"]
[Termination "yosephtaher won on time"]

1. Nf3 {[%clk 0:02:54.9]} 1... c5 {[%clk 0:02:59.1]} 2. g3 {[%clk 0:02:54.1]}
2... g6 {[%clk 0:02:59.3]} 3. Bg2 {[%clk 0:02:54.1]} 3... Bg7 {[%clk 0:03:00]}
4. O-O {[%clk 0:02:54.5]} 4... Nc6 {[%clk 0:03:00.6]} 5. e4 {[%clk 0:02:50.3]}
5... d6 {[%clk 0:03:00.5]} 6. c3 {[%clk 0:02:49.3]} 6... Nf6 {[%clk 0:03:00.6]}
7. Re1 {[%clk 0:02:49.4]} 7... O-O {[%clk 0:03:00]} 8. d4 {[%clk 0:02:49.4]}
8... cxd4 {[%clk 0:02:58.6]} 9. cxd4 {[%clk 0:02:50.3]} 9... Bg4 {[%clk
0:02:59.3]} 10. h3 {[%clk 0:02:44]} 10... Bxf3 {[%clk 0:02:59.2]} 11. Bxf3
{[%clk 0:02:44.9]} 11... Nd7 {[%clk 0:02:59.8]} 12. d5 {[%clk 0:02:42.4]} 12...
Nd4 {[%clk 0:02:56.5]} 13. Bg2 {[%clk 0:02:42.2]} 13... Qb6 {[%clk 0:02:52.8]}
14. Nc3 {[%clk 0:02:41.8]} 14... Rac8 {[%clk 0:02:52]} 15. Be3 {[%clk
0:02:23.4]} 15... Qxb2 {[%clk 0:02:45]} 16. Bxd4 {[%clk 0:02:23.3]} 16... Bxd4
{[%clk 0:02:44.1]} 17. Qxd4 {[%clk 0:02:24.2]} 17... Qxc3 {[%clk 0:02:42]} 18.
Qxa7 {[%clk 0:02:23.9]} 18... Nc5 {[%clk 0:02:40.7]} 19. Rac1 {[%clk 0:02:02.7]}
19... Qf6 {[%clk 0:02:32.7]} 20. Re2 {[%clk 0:01:36.4]} 20... h5 {[%clk
0:02:19.3]} 21. h4 {[%clk 0:01:33.9]} 21... Nd3 {[%clk 0:02:10.8]} 22. Rxc8
{[%clk 0:01:33.1]} 22... Rxc8 {[%clk 0:02:11.7]} 23. Qxb7 {[%clk 0:01:32.9]}
23... Rc1+ {[%clk 0:02:09.8]} 24. Kh2 {[%clk 0:01:32.9]} 24... Ne5 {[%clk
0:02:07.9]} 25. Qb2 {[%clk 0:01:01.1]} 25... Rd1 {[%clk 0:02:06.2]} 26. a4
{[%clk 0:00:51.3]} 26... Nf3+ {[%clk 0:01:54.6]} 27. Kh3 {[%clk 0:00:39.1]}
27... Ng1+ {[%clk 0:01:54.4]} 28. Kh2 {[%clk 0:00:39.5]} 28... Nxe2 {[%clk
0:01:55.3]} 29. Qxe2 {[%clk 0:00:39.2]} 29... Rb1 {[%clk 0:01:56]} 30. f4 {[%clk
0:00:25.9]} 30... Rb2 {[%clk 0:01:55.5]} 31. Qc4 {[%clk 0:00:23.9]} 31... Rd2
{[%clk 0:01:52.3]} 32. Kh3 {[%clk 0:00:17.9]} 32... Qb2 {[%clk 0:01:52.2]} 33.
Qf1 {[%clk 0:00:16.6]} 33... Qa2 {[%clk 0:01:52.6]} 34. f5 {[%clk 0:00:15.9]}
34... Qxa4 {[%clk 0:01:48.5]} 35. fxg6 {[%clk 0:00:11.9]} 35... fxg6 {[%clk
0:01:49.4]} 36. Qf4 {[%clk 0:00:11.7]} 36... Qd1 {[%clk 0:01:37.4]} 37. Qg5
{[%clk 0:00:08.7]} 37... Qg4+ {[%clk 0:01:36.7]} 38. Qxg4 {[%clk 0:00:07.3]}
38... hxg4+ {[%clk 0:01:37.6]} 39. Kh2 {[%clk 0:00:07.8]} 39... Kg7 {[%clk
0:01:38.3]} 40. Kg1 {[%clk 0:00:08.2]} 40... Kf6 {[%clk 0:01:38.7]} 41. Kf1
{[%clk 0:00:09.1]} 41... Ke5 {[%clk 0:01:38.1]} 42. Bh1 {[%clk 0:00:09.8]} 42...
Rd1+ {[%clk 0:01:37.9]} 43. Kg2 {[%clk 0:00:09.3]} 43... Kxe4 {[%clk 0:01:37.3]}
44. Kh2+ {[%clk 0:00:10.2]} 44... Rxh1+ {[%clk 0:01:36.9]} 45. Kxh1 {[%clk
0:00:10.2]} 45... Kxd5 {[%clk 0:01:37.6]} 46. h5 {[%clk 0:00:10.9]} 46... gxh5
{[%clk 0:01:37.7]} 0-1

[Event "Early-Titled-Tuesday-Blitz-February-06-2024"]
[Site "Chess.com"]
[Date "2024.02.06"]
[Round "4"]
[White "aranibos"]
[Black "GrumbleBruno"]
[Result "1-0"]
[WhiteElo "2280"]
[BlackElo "2456"]
[TimeControl "180+1"]
[EndTime "8:38:37 PST"]
[Termination "aranibos won by resignation"]

1. d4 {[%clk 0:03:00.9]} 1... Nf6 {[%clk 0:02:58.7]} 2. Bg5 {[%clk 0:02:59.6]}
2... e6 {[%clk 0:02:57.1]} 3. Nd2 {[%clk 0:02:55.3]} 3... c5 {[%clk 0:02:55.1]}
4. e3 {[%clk 0:02:51.7]} 4... cxd4 {[%clk 0:02:02.4]} 5. exd4 {[%clk 0:02:50.4]}
5... Be7 {[%clk 0:02:02.6]} 6. c3 {[%clk 0:02:46.9]} 6... b6 {[%clk 0:01:57]} 7.
Ngf3 {[%clk 0:02:46.6]} 7... Bb7 {[%clk 0:01:56.8]} 8. Bd3 {[%clk 0:02:46.1]}
8... O-O {[%clk 0:01:56.3]} 9. Qc2 {[%clk 0:02:30.1]} 9... h6 {[%clk 0:01:53.4]}
10. Bxf6 {[%clk 0:02:20.6]} 10... Bxf6 {[%clk 0:01:52.8]} 11. O-O {[%clk
0:02:13.9]} 11... d6 {[%clk 0:01:51.5]} 12. Be4 {[%clk 0:02:12.2]} 12... Qc7
{[%clk 0:01:45.7]} 13. Bxb7 {[%clk 0:02:10.1]} 13... Qxb7 {[%clk 0:01:45.8]} 14.
Qe4 {[%clk 0:02:09]} 14... d5 {[%clk 0:01:35.5]} 15. Qe2 {[%clk 0:02:07.9]}
15... b5 {[%clk 0:01:34.5]} 16. a3 {[%clk 0:02:06.2]} 16... a5 {[%clk
0:01:34.1]} 17. Rfe1 {[%clk 0:02:06.4]} 17... Nd7 {[%clk 0:01:31.4]} 18. Ne5
{[%clk 0:02:02.9]} 18... Bxe5 {[%clk 0:01:09]} 19. dxe5 {[%clk 0:02:02.5]} 19...
b4 {[%clk 0:01:08.6]} 20. axb4 {[%clk 0:02:01]} 20... axb4 {[%clk 0:01:08.8]}
21. Rxa8 {[%clk 0:01:59.7]} 21... Rxa8 {[%clk 0:01:08.5]} 22. c4 {[%clk
0:01:42.4]} 22... Ra2 {[%clk 0:00:54.9]} 23. cxd5 {[%clk 0:01:39.5]} 23... Qxd5
{[%clk 0:00:52.3]} 24. Nc4 {[%clk 0:01:37.3]} 24... Qb5 {[%clk 0:00:19.7]} 25.
h4 {[%clk 0:01:27.3]} 25... Nb6 {[%clk 0:00:16.8]} 26. Nxb6 {[%clk 0:01:24.3]}
26... Qxb6 {[%clk 0:00:16.9]} 27. Rd1 {[%clk 0:01:24.2]} 27... b3 {[%clk
0:00:14.8]} 28. Rd2 {[%clk 0:01:14.6]} 28... Qa5 {[%clk 0:00:14]} 29. Kh2 {[%clk
0:01:13.2]} 29... g6 {[%clk 0:00:11.5]} 30. f4 {[%clk 0:01:07.7]} 30... h5
{[%clk 0:00:10.6]} 31. Qd3 {[%clk 0:01:04.6]} 31... Qb4 {[%clk 0:00:09.3]} 32.
Qd8+ {[%clk 0:00:59.9]} 32... Kh7 {[%clk 0:00:08.2]} 33. Qf6 {[%clk 0:00:59.9]}
33... Ra7 {[%clk 0:00:06.5]} 34. Rd8 {[%clk 0:00:57.3]} 1-0

[Event "Early-Titled-Tuesday-Blitz-February-06-2024"]
[Site "Chess.com"]
[Date "2024.02.06"]
[Round "4"]
[White "MattyDPerrine"]
[Black "ReinisUz"]
[Result "1-0"]
[WhiteElo "2509"]
[BlackElo "2348"]
[TimeControl "180+1"]
[EndTime "8:38:40 PST"]
[Termination "MattyDPerrine won by checkmate"]

1. e4 {[%clk 0:03:00.9]} 1... c5 {[%clk 0:02:59.5]} 2. Nf3 {[%clk 0:02:59.2]}
2... Nc6 {[%clk 0:02:58.2]} 3. Bb5 {[%clk 0:02:59.7]} 3... g6 {[%clk 0:02:58]}
4. O-O {[%clk 0:02:58.4]} 4... Bg7 {[%clk 0:02:57.5]} 5. c3 {[%clk 0:02:59.1]}
5... e5 {[%clk 0:02:55.3]} 6. d4 {[%clk 0:02:59]} 6... cxd4 {[%clk 0:02:53.2]}
7. cxd4 {[%clk 0:02:59.9]} 7... Nxd4 {[%clk 0:02:53.2]} 8. Nxd4 {[%clk
0:02:56.8]} 8... exd4 {[%clk 0:02:54.1]} 9. Bf4 {[%clk 0:02:56.4]} 9... Ne7
{[%clk 0:02:54.4]} 10. Nd2 {[%clk 0:02:40.3]} 10... O-O {[%clk 0:02:52.5]} 11.
Bd6 {[%clk 0:02:37.3]} 11... Re8 {[%clk 0:02:52.2]} 12. Bc4 {[%clk 0:02:19.3]}
12... Qb6 {[%clk 0:02:47.3]} 13. Qf3 {[%clk 0:02:00.1]} 13... Nf5 {[%clk
0:02:05]} 14. Ba3 {[%clk 0:00:58.7]} 14... Nh6 {[%clk 0:02:01.3]} 15. Bd5 {[%clk
0:00:59.1]} 15... d6 {[%clk 0:01:53.6]} 16. Nc4 {[%clk 0:00:58.4]} 16... Bg4
{[%clk 0:01:19.2]} 17. Nxb6 {[%clk 0:00:48.6]} 17... Bxf3 {[%clk 0:01:18.6]} 18.
Nxa8 {[%clk 0:00:49]} 18... Rxa8 {[%clk 0:01:18.4]} 19. gxf3 {[%clk 0:00:48.1]}
19... Be5 {[%clk 0:01:12.8]} 20. Bxb7 {[%clk 0:00:37]} 20... Rb8 {[%clk
0:01:12.3]} 21. Bd5 {[%clk 0:00:37.4]} 21... Kg7 {[%clk 0:01:11.9]} 22. Rfd1
{[%clk 0:00:28.6]} 22... Ng8 {[%clk 0:01:11]} 23. f4 {[%clk 0:00:24.9]} 23...
Bxf4 {[%clk 0:01:09.7]} 24. Rxd4 {[%clk 0:00:25.5]} 24... Be5 {[%clk 0:01:10.2]}
25. Rd2 {[%clk 0:00:20.5]} 25... Nf6 {[%clk 0:01:08]} 26. Rad1 {[%clk
0:00:18.1]} 26... Nh5 {[%clk 0:01:02.5]} 27. f3 {[%clk 0:00:17.7]} 27... Nf4
{[%clk 0:01:00.1]} 28. Bb3 {[%clk 0:00:17.9]} 28... h5 {[%clk 0:00:54.9]} 29.
Bxd6 {[%clk 0:00:17.7]} 29... Bxd6 {[%clk 0:00:46.3]} 30. Rxd6 {[%clk
0:00:18.6]} 30... a5 {[%clk 0:00:44.6]} 31. Rd7 {[%clk 0:00:18.4]} 31... a4
{[%clk 0:00:44.7]} 32. Rxf7+ {[%clk 0:00:17.8]} 32... Kh6 {[%clk 0:00:44.8]} 33.
Rxf4 {[%clk 0:00:18.5]} 33... axb3 {[%clk 0:00:44.7]} 34. axb3 {[%clk
0:00:19.4]} 34... Rxb3 {[%clk 0:00:45]} 35. h4 {[%clk 0:00:16.6]} 35... Rxb2
{[%clk 0:00:44.6]} 36. Rd7 {[%clk 0:00:17.3]} 36... g5 {[%clk 0:00:42.8]} 37.
Rf6# {[%clk 0:00:17.4]} 1-0

[Event "Early-Titled-Tuesday-Blitz-February-06-2024"]
[Site "Chess.com"]
[Date "2024.02.06"]
[Round "4"]
[White "SergioMoralesG"]
[Black "bogcsab"]
[Result "0-1"]
[WhiteElo "2449"]
[BlackElo "2357"]
[TimeControl "180+1"]
[EndTime "8:38:40 PST"]
[Termination "bogcsab won on time"]

1. d4 {[%clk 0:03:00.9]} 1... Nf6 {[%clk 0:02:58.9]} 2. c4 {[%clk 0:03:00.9]}
2... g6 {[%clk 0:02:59.4]} 3. Nc3 {[%clk 0:03:00.2]} 3... Bg7 {[%clk 0:03:00]}
4. e4 {[%clk 0:03:00.4]} 4... O-O {[%clk 0:02:59.2]} 5. Nf3 {[%clk 0:02:59.8]}
5... d6 {[%clk 0:02:59.3]} 6. Be2 {[%clk 0:02:59.9]} 6... Nbd7 {[%clk
0:02:59.9]} 7. O-O {[%clk 0:02:58.7]} 7... e5 {[%clk 0:03:00]} 8. Be3 {[%clk
0:02:59.2]} 8... Ng4 {[%clk 0:02:59.1]} 9. Bg5 {[%clk 0:02:59.1]} 9... f6 {[%clk
0:02:59.3]} 10. Bh4 {[%clk 0:02:59.8]} 10... c6 {[%clk 0:02:59.3]} 11. dxe5
{[%clk 0:02:55.8]} 11... dxe5 {[%clk 0:02:59]} 12. b4 {[%clk 0:02:53.2]} 12...
Qe7 {[%clk 0:02:58]} 13. c5 {[%clk 0:02:45.2]} 13... Kh8 {[%clk 0:02:55]} 14.
Nd2 {[%clk 0:02:38.8]} 14... Nh6 {[%clk 0:02:54]} 15. Nc4 {[%clk 0:02:38.7]}
15... a5 {[%clk 0:02:52.7]} 16. a3 {[%clk 0:02:22]} 16... axb4 {[%clk
0:02:52.9]} 17. axb4 {[%clk 0:02:22.2]} 17... Rxa1 {[%clk 0:02:53.5]} 18. Qxa1
{[%clk 0:02:22.6]} 18... Nb8 {[%clk 0:02:54.1]} 19. Nd6 {[%clk 0:02:18.8]} 19...
g5 {[%clk 0:02:45.4]} 20. Bg3 {[%clk 0:02:18.1]} 20... f5 {[%clk 0:02:43.7]} 21.
Nxc8 {[%clk 0:01:52.1]} 21... Rxc8 {[%clk 0:02:40.2]} 22. exf5 {[%clk
0:01:48.4]} 22... Nxf5 {[%clk 0:02:39.7]} 23. Ne4 {[%clk 0:01:47.9]} 23... Nd4
{[%clk 0:02:31.1]} 24. Bg4 {[%clk 0:01:43.6]} 24... Rf8 {[%clk 0:02:22.9]} 25.
Kh1 {[%clk 0:01:34]} 25... Na6 {[%clk 0:02:18.7]} 26. Qb1 {[%clk 0:01:10.4]}
26... Nb5 {[%clk 0:02:14.2]} 27. Re1 {[%clk 0:01:08.2]} 27... Nac7 {[%clk
0:02:13.1]} 28. Qd3 {[%clk 0:00:59.4]} 28... Nd5 {[%clk 0:02:10.6]} 29. Qd2
{[%clk 0:00:46.2]} 29... h6 {[%clk 0:02:07.5]} 30. Qd3 {[%clk 0:00:44]} 30...
Qf7 {[%clk 0:02:02.9]} 31. Nd6 {[%clk 0:00:37.4]} 31... Qe7 {[%clk 0:01:58]} 32.
Nxb5 {[%clk 0:00:35.8]} 32... Nxb4 {[%clk 0:01:55.7]} 33. Qd6 {[%clk 0:00:35.9]}
33... Qxd6 {[%clk 0:01:53.2]} 34. Nxd6 {[%clk 0:00:36.8]} 34... Nd3 {[%clk
0:01:50.9]} 35. Nxb7 {[%clk 0:00:35.6]} 35... Nxe1 {[%clk 0:01:50.3]} 36. Bd7
{[%clk 0:00:28.2]} 36... Nd3 {[%clk 0:01:39.9]} 37. Kg1 {[%clk 0:00:19.4]} 37...
Rf7 {[%clk 0:01:30.1]} 38. Bxc6 {[%clk 0:00:18.6]} 38... Rc7 {[%clk 0:01:30]}
39. Nd8 {[%clk 0:00:03.4]} 39... Nxc5 {[%clk 0:01:22.3]} 40. Bd5 {[%clk
0:00:03.5]} 40... Rd7 {[%clk 0:01:13.5]} 41. Nf7+ {[%clk 0:00:02]} 41... Kh7
{[%clk 0:01:11.5]} 0-1

[Event "Early-Titled-Tuesday-Blitz-February-06-2024"]
[Site "Chess.com"]
[Date "2024.02.06"]
[Round "4"]
[White "ural58"]
[Black "atomicmate123"]
[Result "1-0"]
[WhiteElo "2486"]
[BlackElo "2223"]
[TimeControl "180+1"]
[EndTime "8:38:41 PST"]
[Termination "ural58 won by checkmate"]

1. e4 {[%clk 0:02:58.6]} 1... c5 {[%clk 0:02:59.5]} 2. b3 {[%clk 0:02:56.6]}
2... Nc6 {[%clk 0:02:57.3]} 3. Bb2 {[%clk 0:02:56.7]} 3... e5 {[%clk 0:02:55.6]}
4. f4 {[%clk 0:02:55.5]} 4... d6 {[%clk 0:02:52.7]} 5. Bb5 {[%clk 0:02:53.7]}
5... Bd7 {[%clk 0:02:50]} 6. Nf3 {[%clk 0:02:45.1]} 6... Nf6 {[%clk 0:02:15.6]}
7. O-O {[%clk 0:02:28.6]} 7... Qb6 {[%clk 0:02:05.5]} 8. c4 {[%clk 0:02:27.5]}
8... Bg4 {[%clk 0:01:24.5]} 9. fxe5 {[%clk 0:02:24.3]} 9... dxe5 {[%clk
0:01:24.6]} 10. Bxe5 {[%clk 0:02:24.2]} 10... a6 {[%clk 0:01:23.4]} 11. Ba4
{[%clk 0:02:20.5]} 11... Nd7 {[%clk 0:01:14.4]} 12. Bg3 {[%clk 0:02:12.6]} 12...
Nd4 {[%clk 0:01:12.1]} 13. Nc3 {[%clk 0:02:02]} 13... Nxf3+ {[%clk 0:01:11]} 14.
gxf3 {[%clk 0:02:01.5]} 14... Be6 {[%clk 0:01:08.2]} 15. Nd5 {[%clk 0:02:01.1]}
15... Bxd5 {[%clk 0:01:08.4]} 16. cxd5 {[%clk 0:01:59.7]} 16... Be7 {[%clk
0:01:07.9]} 17. Bxd7+ {[%clk 0:01:58.4]} 17... Kxd7 {[%clk 0:01:07.3]} 18. Kh1
{[%clk 0:01:58.3]} 18... h5 {[%clk 0:00:56.6]} 19. Rc1 {[%clk 0:01:57]} 19... h4
{[%clk 0:00:55.2]} 20. Bf2 {[%clk 0:01:57.1]} 20... Qf6 {[%clk 0:00:54.1]} 21.
Bxc5 {[%clk 0:01:55.2]} 21... Bxc5 {[%clk 0:00:53.5]} 22. Rxc5 {[%clk
0:01:55.3]} 22... Rac8 {[%clk 0:00:54.4]} 23. Rxc8 {[%clk 0:01:54.9]} 23... Rxc8
{[%clk 0:00:55.3]} 24. f4 {[%clk 0:01:48.9]} 24... Qd4 {[%clk 0:00:54.3]} 25.
Qg4+ {[%clk 0:01:48.7]} 25... Kd8 {[%clk 0:00:34.5]} 26. Qxh4+ {[%clk
0:01:48.9]} 26... f6 {[%clk 0:00:35.1]} 27. Qh8+ {[%clk 0:01:46]} 27... Kd7
{[%clk 0:00:34.8]} 28. Qxg7+ {[%clk 0:01:43.2]} 28... Kd6 {[%clk 0:00:35]} 29.
e5+ {[%clk 0:01:39.1]} 29... fxe5 {[%clk 0:00:22.6]} 30. Qf6+ {[%clk 0:01:36.8]}
30... Kd7 {[%clk 0:00:18.4]} 31. Qe6+ {[%clk 0:01:35.5]} 31... Kd8 {[%clk
0:00:18.4]} 32. Qd6+ {[%clk 0:01:31]} 32... Ke8 {[%clk 0:00:18.3]} 33. Qxe5+
{[%clk 0:01:31.6]} 33... Qxe5 {[%clk 0:00:18.4]} 34. fxe5 {[%clk 0:01:32]} 34...
Rc2 {[%clk 0:00:19.2]} 35. Rf2 {[%clk 0:01:27.8]} 35... Rxa2 {[%clk 0:00:19.2]}
36. d6 {[%clk 0:01:28.5]} 36... Kd7 {[%clk 0:00:19.2]} 37. Kg2 {[%clk
0:01:27.7]} 37... Ke6 {[%clk 0:00:19.6]} 38. d4 {[%clk 0:01:27.9]} 38... Ra3
{[%clk 0:00:16.9]} 39. d5+ {[%clk 0:01:27]} 39... Kd7 {[%clk 0:00:11.8]} 40.
Rf7+ {[%clk 0:01:26.7]} 40... Kd8 {[%clk 0:00:12.1]} 41. Rxb7 {[%clk 0:01:26.7]}
41... Ra2+ {[%clk 0:00:11.5]} 42. Kf3 {[%clk 0:01:26.5]} 42... Rd2 {[%clk
0:00:11.8]} 43. e6 {[%clk 0:01:26.7]} 43... Kc8 {[%clk 0:00:09.6]} 44. Rc7+
{[%clk 0:01:26.8]} 44... Kd8 {[%clk 0:00:09.2]} 45. Ra7 {[%clk 0:01:26.9]} 45...
Kc8 {[%clk 0:00:08.9]} 46. d7+ {[%clk 0:01:27]} 46... Kd8 {[%clk 0:00:08.4]} 47.
Ra8+ {[%clk 0:01:26.2]} 47... Ke7 {[%clk 0:00:08.4]} 48. d8=Q# {[%clk
0:01:27.1]} 1-0

[Event "Early-Titled-Tuesday-Blitz-February-06-2024"]
[Site "Chess.com"]
[Date "2024.02.06"]
[Round "4"]
[White "vladoboch"]
[Black "Ginger_GM"]
[Result "0-1"]
[WhiteElo "2455"]
[BlackElo "2685"]
[TimeControl "180+1"]
[EndTime "8:38:48 PST"]
[Termination "Ginger_GM won on time"]

1. e4 {[%clk 0:03:00.9]} 1... c5 {[%clk 0:02:58.9]} 2. Nf3 {[%clk 0:03:01.2]}
2... d6 {[%clk 0:02:58.7]} 3. d4 {[%clk 0:03:01.8]} 3... cxd4 {[%clk 0:02:59]}
4. Nxd4 {[%clk 0:03:02.7]} 4... Nf6 {[%clk 0:02:59.1]} 5. Nc3 {[%clk 0:03:03]}
5... g6 {[%clk 0:02:59.4]} 6. Be2 {[%clk 0:02:55.8]} 6... Bg7 {[%clk 0:02:58]}
7. O-O {[%clk 0:02:53.3]} 7... O-O {[%clk 0:02:56.1]} 8. Bg5 {[%clk 0:02:53.2]}
8... Nc6 {[%clk 0:02:55.2]} 9. Nb3 {[%clk 0:02:53.2]} 9... Be6 {[%clk
0:02:52.4]} 10. Kh1 {[%clk 0:02:53.4]} 10... Rc8 {[%clk 0:02:51.8]} 11. f4
{[%clk 0:02:53.7]} 11... Na5 {[%clk 0:02:50.7]} 12. e5 {[%clk 0:02:51.7]} 12...
Nxb3 {[%clk 0:02:29]} 13. axb3 {[%clk 0:02:46.2]} 13... Ne8 {[%clk 0:02:27.6]}
14. Rxa7 {[%clk 0:02:42.4]} 14... Qb6 {[%clk 0:01:58.7]} 15. Ra4 {[%clk
0:02:22.2]} 15... f6 {[%clk 0:01:54.2]} 16. exf6 {[%clk 0:02:02.3]} 16... Nxf6
{[%clk 0:01:53]} 17. Bxf6 {[%clk 0:01:52.3]} 17... Bxf6 {[%clk 0:01:51.4]} 18.
Nd5 {[%clk 0:01:38.5]} 18... Bxd5 {[%clk 0:01:50.9]} 19. Qxd5+ {[%clk
0:01:39.4]} 19... Kg7 {[%clk 0:01:50.5]} 20. c3 {[%clk 0:01:35.4]} 20... Qe3
{[%clk 0:01:42.4]} 21. Re4 {[%clk 0:01:31.6]} 21... Qb6 {[%clk 0:01:37.1]} 22.
f5 {[%clk 0:01:29.7]} 22... Rc5 {[%clk 0:01:30.7]} 23. Qe6 {[%clk 0:01:16.4]}
23... g5 {[%clk 0:01:23]} 24. Rb4 {[%clk 0:01:01.4]} 24... Qc7 {[%clk
0:01:20.6]} 25. Bf3 {[%clk 0:00:55.3]} 25... b6 {[%clk 0:01:20.5]} 26. Qe3
{[%clk 0:00:51.3]} 26... Rxf5 {[%clk 0:01:13.6]} 27. Rxb6 {[%clk 0:00:40.9]}
27... g4 {[%clk 0:01:04.6]} 28. Be2 {[%clk 0:00:19.4]} 28... Bg5 {[%clk
0:01:04.3]} 29. Qd4+ {[%clk 0:00:07.2]} 29... e5 {[%clk 0:01:02.3]} 30. Rxf5
{[%clk 0:00:01.9]} 30... exd4 {[%clk 0:01:01.1]} 31. Rxg5+ {[%clk 0:00:02.2]}
31... Kh6 {[%clk 0:00:56.2]} 32. Rbb5 {[%clk 0:00:02.3]} 32... Re8 {[%clk
0:00:45.9]} 33. Rh5+ {[%clk 0:00:02.6]} 33... Kg7 {[%clk 0:00:45.7]} 34. Rbg5+
{[%clk 0:00:02.9]} 34... Kh8 {[%clk 0:00:46.3]} 0-1

[Event "Early-Titled-Tuesday-Blitz-February-06-2024"]
[Site "Chess.com"]
[Date "2024.02.06"]
[Round "4"]
[White "Witik"]
[Black "rasmussvane"]
[Result "0-1"]
[WhiteElo "2785"]
[BlackElo "2965"]
[TimeControl "180+1"]
[EndTime "8:38:49 PST"]
[Termination "rasmussvane won by resignation"]

1. d4 {[%clk 0:02:59.8]} 1... Nf6 {[%clk 0:02:55.3]} 2. c4 {[%clk 0:02:59.5]}
2... e6 {[%clk 0:02:54.6]} 3. Nf3 {[%clk 0:02:59.1]} 3... d5 {[%clk 0:02:48.3]}
4. g3 {[%clk 0:02:55.5]} 4... Be7 {[%clk 0:02:42.1]} 5. Bg2 {[%clk 0:02:55.7]}
5... O-O {[%clk 0:02:42.4]} 6. O-O {[%clk 0:02:56.3]} 6... dxc4 {[%clk 0:02:41]}
7. Qc2 {[%clk 0:02:56.4]} 7... a6 {[%clk 0:02:39.3]} 8. a4 {[%clk 0:02:56.3]}
8... Bd7 {[%clk 0:02:39.4]} 9. Qxc4 {[%clk 0:02:55.8]} 9... Bc6 {[%clk
0:02:39.2]} 10. Bf4 {[%clk 0:02:56.5]} 10... Bd6 {[%clk 0:02:37.2]} 11. Nc3
{[%clk 0:02:56.5]} 11... Bxf4 {[%clk 0:02:28.1]} 12. gxf4 {[%clk 0:02:56.8]}
12... a5 {[%clk 0:02:28.7]} 13. e3 {[%clk 0:02:51.5]} 13... Na6 {[%clk
0:02:26.7]} 14. Qe2 {[%clk 0:02:50.7]} 14... Bxf3 {[%clk 0:02:18.3]} 15. Bxf3
{[%clk 0:02:50.5]} 15... c6 {[%clk 0:02:18.5]} 16. Rad1 {[%clk 0:02:47.6]} 16...
Nb4 {[%clk 0:02:18]} 17. Kh1 {[%clk 0:02:47.9]} 17... Kh8 {[%clk 0:02:16.3]} 18.
Rg1 {[%clk 0:02:48.1]} 18... Qe7 {[%clk 0:02:14.6]} 19. Rg3 {[%clk 0:02:41.1]}
19... Rad8 {[%clk 0:02:11.2]} 20. Rdg1 {[%clk 0:02:40.7]} 20... g6 {[%clk
0:02:10.7]} 21. Qf1 {[%clk 0:02:35.7]} 21... b6 {[%clk 0:01:59.5]} 22. Ne4
{[%clk 0:02:22.9]} 22... Nxe4 {[%clk 0:01:39.7]} 23. Bxe4 {[%clk 0:02:23.8]}
23... c5 {[%clk 0:01:38.8]} 24. dxc5 {[%clk 0:02:20.5]} 24... bxc5 {[%clk
0:01:15.5]} 25. Qc4 {[%clk 0:02:08.6]} 25... Rd7 {[%clk 0:01:05.2]} 26. Rc1
{[%clk 0:02:04.2]} 26... Rc8 {[%clk 0:01:00.7]} 27. Rgg1 {[%clk 0:02:03.2]}
27... Kg8 {[%clk 0:00:59.1]} 28. Kg2 {[%clk 0:01:51.2]} 28... Qh4 {[%clk
0:00:51.7]} 29. h3 {[%clk 0:01:51.2]} 29... Rd2 {[%clk 0:00:51.2]} 30. Rgf1
{[%clk 0:01:44.3]} 30... Rxb2 {[%clk 0:00:49.5]} 31. Qc3 {[%clk 0:01:42.1]}
31... Ra2 {[%clk 0:00:48.4]} 32. Bb7 {[%clk 0:01:19.5]} 32... Rd8 {[%clk
0:00:43.7]} 33. e4 {[%clk 0:00:18.5]} 33... Rd3 {[%clk 0:00:39.6]} 34. Qxc5
{[%clk 0:00:15.5]} 34... Rg3+ {[%clk 0:00:34]} 0-1

[Event "Early-Titled-Tuesday-Blitz-February-06-2024"]
[Site "Chess.com"]
[Date "2024.02.06"]
[Round "4"]
[White "mbojan"]
[Black "DishonorOnYourCow"]
[Result "1-0"]
[WhiteElo "2880"]
[BlackElo "2577"]
[TimeControl "180+1"]
[EndTime "8:38:49 PST"]
[Termination "mbojan won by resignation"]

1. Nf3 {[%clk 0:03:00.9]} 1... d5 {[%clk 0:02:59.4]} 2. g3 {[%clk 0:03:00.2]}
2... c5 {[%clk 0:02:59.5]} 3. Bg2 {[%clk 0:02:59.6]} 3... Nf6 {[%clk 0:03:00.1]}
4. O-O {[%clk 0:02:58.2]} 4... g6 {[%clk 0:03:00.6]} 5. c4 {[%clk 0:02:56]} 5...
Bg7 {[%clk 0:02:59]} 6. cxd5 {[%clk 0:02:53.8]} 6... Nxd5 {[%clk 0:02:59.9]} 7.
Nc3 {[%clk 0:02:52.2]} 7... Nxc3 {[%clk 0:02:58]} 8. bxc3 {[%clk 0:02:52]} 8...
O-O {[%clk 0:02:58]} 9. Rb1 {[%clk 0:02:51.7]} 9... Nd7 {[%clk 0:02:51.2]} 10.
d4 {[%clk 0:02:29.2]} 10... cxd4 {[%clk 0:02:45.2]} 11. cxd4 {[%clk 0:02:30.1]}
11... Nf6 {[%clk 0:02:26.2]} 12. Ne5 {[%clk 0:02:14.8]} 12... Rb8 {[%clk
0:01:57.2]} 13. Nc6 {[%clk 0:02:08.9]} 13... bxc6 {[%clk 0:01:56.8]} 14. Rxb8
{[%clk 0:02:08.6]} 14... Qa5 {[%clk 0:01:52.8]} 15. Qd2 {[%clk 0:02:06.8]} 15...
Qh5 {[%clk 0:01:42]} 16. Bf3 {[%clk 0:02:02.1]} 16... Qh3 {[%clk 0:01:36.6]} 17.
Ba3 {[%clk 0:01:59.6]} 17... Ng4 {[%clk 0:01:15.9]} 18. Bxg4 {[%clk 0:01:58.4]}
18... Bxg4 {[%clk 0:01:16.8]} 19. Rfb1 {[%clk 0:01:47.8]} 19... Bc8 {[%clk
0:00:47.8]} 20. Bxe7 {[%clk 0:01:39.9]} 20... Re8 {[%clk 0:00:47.6]} 21. Bd6
{[%clk 0:01:40.3]} 21... h5 {[%clk 0:00:43.7]} 22. Be5 {[%clk 0:01:33]} 22... f6
{[%clk 0:00:20.1]} 23. Bd6 {[%clk 0:01:29]} 23... Kh7 {[%clk 0:00:20.4]} 24. Ra8
{[%clk 0:01:17.7]} 24... Re4 {[%clk 0:00:17.1]} 25. f3 {[%clk 0:01:05]} 25...
Re6 {[%clk 0:00:15.2]} 26. Bf4 {[%clk 0:01:02.4]} 26... Re7 {[%clk 0:00:14.4]}
27. Rab8 {[%clk 0:00:47.7]} 27... Ba6 {[%clk 0:00:12.6]} 28. e4 {[%clk
0:00:42.2]} 28... g5 {[%clk 0:00:11.4]} 29. Be3 {[%clk 0:00:42]} 29... g4 {[%clk
0:00:11]} 30. Qg2 {[%clk 0:00:42.2]} 30... Qxg2+ {[%clk 0:00:07.9]} 31. Kxg2
{[%clk 0:00:43.1]} 31... gxf3+ {[%clk 0:00:08.3]} 32. Kxf3 {[%clk 0:00:43.7]}
32... Bd3 {[%clk 0:00:08.7]} 33. R1b7 {[%clk 0:00:44.3]} 33... Bxe4+ {[%clk
0:00:09.3]} 34. Kf2 {[%clk 0:00:45]} 34... Re6 {[%clk 0:00:07.4]} 35. Rxa7
{[%clk 0:00:45.3]} 35... Kg6 {[%clk 0:00:06.8]} 36. Rg8 {[%clk 0:00:45.1]} 1-0